bitfinex-derivatives/quotes_SOLF0:USTF0_20250228
["timestamp","ask_amount","ask_price","bid_price","bid_amount"]
[1740749254387,47.4,137.22,137.09,3.5741]
[1740749254584,7.2984,137.11,137.09,3.5741]
[1740749254993,15.84,137.16,137.09,3.5741]
[1740749255290,7.2983,137.12,137.09,3.5741]
[1740749255585,7.2973,137.13,137.11,0.04595095]
[1740749255988,0.0556348,137.14,137.11,0.04595095]
[1740749256185,15.8,137.21,137.11,0.04595095]
[1740749256594,15.8,137.21,137.09,198.5741]
[1740749256792,7.2956,137.17,137.12,7.2974]
[1740749257092,15.8,137.21,137.13,3.5918]
[1740749257290,0.05026998,137.16,137.13,3.64718569]
[1740749257484,7.2949,137.18,137.13,3.64718569]
[1740749258091,15.8,137.21,137.13,3.64718569]
[1740749258294,37.68,137.21,137.13,3.64718569]
[1740749258695,7.2965,137.15,137.13,3.64718569]
[1740749258895,0.05051326,137.18,137.13,3.64718569]
[1740749259598,7.2965,137.15,137.13,3.64718569]
[1740749259896,0.05051326,137.18,137.13,0.05538569]
[1740749259897,15.84,137.16,137.13,0.05538569]
[1740749260293,7.2967,137.14,137.13,0.05538569]
[1740749264289,7.34840614,137.15,137.13,0.05538569]
[1740749264490,0.05200614,137.15,137.13,0.05538569]
[1740749265195,15.74,137.2,137.13,0.05538569]
[1740749265598,7.2943,137.19,137.16,7.2956]
[1740749265993,15.7,137.21,137.16,7.2956]
[1740749266198,7.2938,137.2,137.16,7.2956]
[1740749266397,7.34294937,137.2,137.17,0.04839489]
[1740749266591,0.04914937,137.2,137.17,0.04839489]
[1740749266999,7.2944,137.19,137.17,0.04839489]
[1740749267400,0.04914937,137.2,137.17,0.04839489]
[1740749267796,7.2946,137.18,137.17,9.489e-05]
[1740749268103,22.9946,137.18,137.17,9.489e-05]
[1740749268707,7.2946,137.18,137.17,9.489e-05]
[1740749274499,0.04914937,137.2,137.17,9.489e-05]
[1740749274705,7.34294937,137.2,137.17,9.489e-05]
[1740749275607,0.04914937,137.2,137.17,9.489e-05]
[1740749276704,7.34274937,137.2,137.17,7.29489489]
[1740749277603,7.2945,137.19,137.17,9.489e-05]
[1740749277905,0.04914937,137.2,137.17,9.489e-05]
[1740749279310,0.04914937,137.2,137.17,7.29499489]
[1740749279610,0.04914937,137.2,137.17,9.489e-05]
[1740749280104,37.48914937,137.2,137.17,9.489e-05]
[1740749280410,7.2946,137.18,137.17,9.489e-05]
[1740749282701,7.2943,137.19,137.17,9.489e-05]
[1740749283100,15.60914937,137.2,137.17,9.489e-05]
[1740749283308,0.04914937,137.2,137.17,9.489e-05]
[1740749283808,0.04914937,137.2,137.19,7.2941]
[1740749284012,59.48574648,137.24,137.17,9.489e-05]
[1740749284013,59.48574648,137.24,137.18,7.6856]
[1740749284409,66.77724648,137.24,137.21,7.2928]
[1740749284611,59.48574648,137.24,137.18,7.6856]
[1740749285012,7.2941,137.19,137.18,7.6856]
[1740749285612,7.2941,137.19,137.18,3.8584]
[1740749285915,7.2946,137.18,137.17,0.04752059]
[1740749287116,0.05123436,137.19,137.17,0.04752059]
[1740749287515,7.2946,137.18,137.17,0.04752059]
[1740749287717,0.05123436,137.19,137.17,0.04752059]
[1740749288617,7.2946,137.18,137.17,0.04752059]
[1740749289320,0.05123436,137.19,137.17,0.04752059]
[1740749289712,0.05123436,137.19,137.09,233.42]
[1740749289713,21.88,137.16,137.05,79.25438319]
[1740749290016,7.3005,137.07,137.05,79.25438319]
[1740749290415,23.3798,137.09,137.05,79.25438319]
[1740749290616,16.08,137.14,137.05,79.25438319]
[1740749291113,0.05586597,137.11,137.09,0.05203889]
[1740749291510,16.08,137.14,137.09,0.05203889]
[1740749291814,16.08,137.19,137.09,195.05203889]
[1740749292119,39.96659668,137.2,137.11,7.2979]
[1740749292319,39.96659668,137.2,137.12,3.915]
[1740749292714,0.04884028,137.17,137.15,0.05107851]
[1740749292919,39.96659668,137.2,137.15,0.05107851]
[1740749293420,34.08429668,137.2,137.15,211.13107851]
[1740749293616,10.56389668,137.2,137.16,3.8516]
[1740749293922,78.56444866,137.21,137.16,3.8516]
[1740749294819,21.88,137.28,137.16,3.8516]
[1740749295013,34.91006095,137.28,137.16,3.8516]
[1740749295322,7.2925,137.22,137.21,0.0551553]
[1740749295827,7.2925,137.22,137.12,3.915]
[1740749295828,43.76,137.26,137.08,234.92774972]
[1740749296022,3.5987,137.21,137.08,40.82494972]
[1740749296225,3.5987,137.21,137.09,7.299]
[1740749296424,3.5987,137.21,137.08,40.82494972]
[1740749297027,0.04662151,137.16,137.13,0.05550948]
[1740749298127,7.2966,137.15,137.13,0.05550948]
[1740749298318,0.04662151,137.16,137.13,0.05550948]
[1740749299029,0.04662151,137.16,137.06,39.92774972]
[1740749299228,7.2972,137.14,137.07,7.3001]
[1740749299429,7.2972,137.14,137.06,39.92774972]
[1740749299630,25.4787,137.21,137.06,39.92774972]
[1740749299830,3.5987,137.21,137.06,39.92774972]
[1740749300031,0.05233014,137.15,137.12,0.05419658]
[1740749300227,3.5987,137.21,137.07,195.948]
[1740749300427,0.05579466,137.15,137.12,0.04685467]
[1740749300723,25.4787,137.21,137.07,195.0]
[1740749300929,0.04806511,137.15,137.12,0.05477372]
[1740749301323,21.88,137.18,137.05,3.6497]
[1740749301630,0.05565841,137.15,137.1,0.05199994]
[1740749302033,25.54075841,137.15,137.03,195.0]
[1740749302229,47.42075841,137.15,137.01,39.92774972]
[1740749302437,21.88,137.13,137.01,39.92774972]
[1740749302626,7.302,137.05,137.01,39.92774972]
[1740749302822,56.80378933,137.13,137.01,39.92774972]
[1740749303028,7.3037,137.01,137.0,79.25438319]
[1740749303728,7.3042,137.0,136.99,0.04879101]
[1740749304032,7.3042,137.0,136.97,30.34414545]
[1740749304227,7.3042,137.0,136.98,0.04596073]
[1740749305128,0.0476736,137.01,136.98,0.04596073]
[1740749306335,7.3047,136.99,136.98,0.04596073]
[1740749307027,0.0476736,137.01,136.98,0.04596073]
[1740749307426,7.3516736,137.01,136.98,0.04596073]
[1740749307828,0.0476736,137.01,136.98,0.04596073]
[1740749308633,7.3047,136.99,136.98,0.04596073]
[1740749309542,0.0476736,137.01,136.98,6.073e-05]
[1740749309737,0.0476736,137.01,136.84,79.25438319]
[1740749310142,1.31431814,137.09,136.83,14.6263]
[1740749310541,1.31431814,137.09,136.84,16.08696094]
[1740749310746,1.31431814,137.1,136.85,1.3033858]
[1740749310942,0.04771461,136.98,136.95,0.05575323]
[1740749311244,7.3025,137.04,136.99,7.3046]
[1740749311947,7.3026,137.03,136.99,7.3046]
[1740749312251,0.05228447,137.02,137.0,0.05159792]
[1740749313050,1.31368035,137.11,137.0,3.69159792]
[1740749313250,7.3001,137.08,137.0,0.05159792]
[1740749313449,7.3001,137.08,137.02,7.3031]
[1740749313850,7.3001,137.08,136.88,14.6209]
[1740749314045,7.3001,137.08,136.89,2.7617914]
[1740749314246,7.3005,137.07,136.9,1.3007643]
[1740749314453,0.04975147,136.99,136.97,0.05311897]
[1740749314643,0.93485586,137.12,136.97,195.05311897]
[1740749314947,0.93485586,137.12,136.97,195.0]
[1740749315146,0.93485586,137.12,136.97,202.3056]
[1740749315452,7.3032,137.02,136.97,195.0]
[1740749315953,0.0554337,137.01,136.98,0.05269769]
[1740749316252,0.93485586,137.12,136.98,0.05269769]
[1740749316452,7.3019,137.05,136.9,5.17605071]
[1740749316654,0.93485586,137.12,136.9,5.17605071]
[1740749316848,0.93485586,137.12,137.0,7.3039]
[1740749317044,0.93485586,137.12,136.91,14.618]
[1740749317249,0.93485586,137.12,136.92,2.76174897]
[1740749317449,0.93485586,137.12,137.05,0.05281156]
[1740749317649,0.93485586,137.12,136.93,434.4606003]
[1740749317846,0.93485586,137.12,137.07,0.05372205]
[1740749318051,289.67539532,137.2,137.07,0.05372205]
[1740749318251,1.31289165,137.19,136.95,1.30070849]
[1740749318451,1.31289165,137.19,136.95,434.30070849]
[1740749318652,233.42,137.2,137.12,0.04662288]
[1740749318956,1.31287661,137.19,136.96,433.0]
[1740749319148,233.42,137.2,137.06,7.3006]
[1740749319344,233.42,137.2,137.06,195.0]
[1740749319547,7.3005,137.07,137.06,195.05118269]
[1740749319755,7.3005,137.07,137.06,0.05118269]
[1740749319946,7.3005,137.07,137.02,195.0]
[1740749320144,7.3005,137.07,137.05,0.04763949]
[1740749320348,7.301,137.06,137.05,0.04763949]
[1740749320550,21.88,137.16,136.93,196.4606003]
[1740749320759,0.04638995,137.07,136.93,1.4606003]
[1740749320953,7.3016,137.05,136.93,1.4606003]
[1740749321149,7.3016,137.05,136.99,7.3043]
[1740749321344,7.3007,137.07,136.93,1.4606003]
[1740749321545,38.74115605,137.16,136.93,1.4606003]
[1740749321746,1.31342597,137.15,137.01,7.3036]
[1740749321954,0.05108069,137.06,137.01,7.3036]
[1740749322152,21.88,137.17,137.01,195.0]
[1740749322354,1.31306083,137.16,137.07,0.05608522]
[1740749322552,7.2998,137.09,137.07,0.05608522]
[1740749322759,7.2998,137.09,136.93,1.4606003]
[1740749322947,43.76,137.18,136.93,1.4606003]
[1740749323151,1.31321901,137.17,136.93,1.4606003]
[1740749323350,1.31321901,137.17,137.04,7.34783645]
[1740749323551,1.31321901,137.17,137.04,0.04613645]
[1740749323757,1.31321901,137.17,136.95,14.6135]
[1740749324056,255.3,137.2,136.96,2.75951907]
[1740749324247,7.2992,137.1,136.96,1.46028037]
[1740749324453,7.2992,137.1,137.05,7.3538621]
[1740749324652,255.3,137.2,136.96,1.46028037]
[1740749324961,1.3128824,137.19,137.08,7.2996]
[1740749325161,255.3,137.2,137.08,7.2996]
[1740749325561,255.3,137.2,137.13,0.04640206]
[1740749325951,7.2967,137.14,137.13,0.04640206]
[1740749326451,233.42,137.2,137.13,0.04640206]
[1740749326657,30.07424177,137.25,137.13,0.04640206]
[1740749326856,1.3125057,137.24,137.13,0.04640206]
[1740749327056,1.3125057,137.24,137.0,14.6082]
[1740749327257,1.3125057,137.24,137.17,0.05081811]
[1740749327457,7.2952,137.17,137.0,14.6082]
[1740749327658,7.2952,137.17,137.13,7.2971]
[1740749327861,90.70255201,137.25,137.13,7.2971]
[1740749327862,51.95424177,137.25,137.13,7.2971]
[1740749328063,7.2958,137.16,137.14,0.05384594]
[1740749328364,51.95424177,137.25,136.97,14.611]
[1740749328661,7.2974,137.13,136.98,1.29758505]
[1740749328862,7.2974,137.13,137.1,0.04684072]
[1740749329061,21.88,137.23,137.08,7.2996]
[1740749329365,1.31270036,137.22,137.1,0.04802419]
[1740749329665,1.31270036,137.22,137.08,7.2998]
[1740749329863,1.31270036,137.22,137.07,7.3003]
[1740749330061,1.31270036,137.22,136.97,14.611]
[1740749330259,1.31270036,137.22,136.98,2.75753379]
[1740749330462,7.2967,137.14,136.99,1.29746663]
[1740749330858,21.88,137.23,136.99,1.29746663]
[1740749331055,7.2968,137.14,136.99,1.29746663]
[1740749331260,0.04772722,137.12,137.1,0.04837302]
[1740749331563,7.2983,137.11,137.07,7.3001]
[1740749331759,0.05376473,137.12,137.1,0.0507864]
[1740749331962,7.2983,137.11,137.1,8.64e-05]
[1740749332163,43.76,137.2,136.98,1.46006716]
[1740749332363,21.88,137.18,136.98,1.46006716]
[1740749332863,1.31304453,137.17,136.98,1.46006716]
[1740749333060,21.88,137.18,136.98,1.46006716]
[1740749333264,0.05286191,137.09,137.06,0.0469532]
[1740749333661,7.2978,137.12,137.09,7.2991]
[1740749333866,14.5882,137.19,137.06,0.05023122]
[1740749334169,7.34505453,137.12,137.11,0.04660995]
[1740749334464,7.2978,137.12,137.11,0.04660995]
[1740749335265,7.2978,137.12,137.11,9.95e-06]
[1740749336362,10.9378,137.12,137.11,9.95e-06]
[1740749336557,32.8178,137.12,137.11,9.95e-06]
[1740749337569,34.1313357,137.12,137.11,9.95e-06]
[1740749337866,56.0113357,137.12,137.11,9.95e-06]
[1740749339960,72.9493041,137.12,137.11,9.95e-06]
[1740749340168,51.0693041,137.12,137.11,9.95e-06]
[1740749340461,46.1157684,137.12,137.11,9.95e-06]
[1740749340766,29.1778,137.12,137.11,9.95e-06]
[1740749342869,54.6978,137.12,137.11,9.95e-06]
[1740749343265,56.01134608,137.12,137.11,9.95e-06]
[1740749343570,43.76,137.1,136.89,233.6]
[1740749343769,1.31389947,137.09,136.91,30.170387]
[1740749343973,7.3038,137.01,136.97,7.3055]
[1740749344164,7.3038,137.01,136.91,30.170387]
[1740749344366,43.76,137.1,136.91,30.170387]
[1740749344569,7.3029,137.03,136.99,7.3043]
[1740749344769,0.05504391,137.02,136.91,30.170387]
[1740749345068,7.3025,137.04,137.0,7.35937982]
[1740749345264,7.3025,137.04,136.91,30.170387]
[1740749345265,21.88,137.1,136.92,14.6168]
[1740749345469,0.05417127,137.03,137.01,0.05029524]
[1740749345662,21.88,137.1,136.91,30.170387]
[1740749345663,43.76,137.1,136.91,30.170387]
[1740749345865,21.88,137.06,136.91,30.170387]
[1740749346172,7.3059,136.97,136.91,30.170387]
[1740749346877,0.04740141,136.95,136.93,7.35900931]
[1740749347265,14.6012,137.07,136.93,0.05150931]
[1740749347469,21.88,137.1,136.99,7.3042]
[1740749347765,7.3033,137.02,136.99,7.3042]
[1740749347970,7.3033,137.02,136.86,109.42477019]
[1740749348270,21.88,137.1,136.87,2.76216587]
[1740749348470,7.3026,137.03,136.99,7.3044]
[1740749348873,0.05196003,137.02,137.0,0.05545872]
[1740749349370,7.3037,137.01,137.0,0.05545872]
[1740749350270,0.05196003,137.02,137.0,0.05545872]
[1740749351075,7.3037,137.01,137.0,0.05545872]
[1740749351872,0.05196003,137.02,137.0,0.05545872]
[1740749352878,7.3037,137.01,137.0,0.05545872]
[1740749353578,7.35536003,137.02,137.0,0.05545872]
[1740749354073,7.3037,137.01,137.0,0.05545872]
[1740749355576,7.3037,137.01,137.0,5.872e-05]
[1740749360583,0.05196003,137.02,137.0,5.872e-05]
[1740749360779,7.35526003,137.02,137.0,5.872e-05]
[1740749360978,0.05196003,137.02,137.0,5.872e-05]
[1740749362281,10.07990395,137.13,137.0,3.64005872]
[1740749362479,10.07990395,137.13,136.87,1.46124059]
[1740749362682,10.07990395,137.13,137.03,7.3023]
[1740749362882,10.07990395,137.13,136.92,14.616]
[1740749363077,7.3014,137.06,136.92,14.616]
[1740749363278,10.07990395,137.13,136.92,14.616]
[1740749363575,10.07990395,137.13,136.98,0.04867093]
[1740749363778,10.07990395,137.13,136.92,14.616]
[1740749364174,21.88,137.11,136.87,16.08314059]
[1740749364379,21.88,137.11,136.91,40.23529446]
[1740749364584,7.3043,137.0,136.91,40.23529446]
[1740749364776,0.05094869,137.02,137.0,0.04592657]
[1740749365081,1.31412565,137.08,136.91,40.23529446]
[1740749365477,108.63869043,137.21,136.91,40.23529446]
[1740749365677,1.31345433,137.16,137.02,7.3028]
[1740749365980,14.5914,137.16,136.91,40.23529446]
[1740749366176,0.04771573,137.1,137.08,0.04821197]
[1740749366378,123.22499043,137.21,136.93,233.66]
[1740749366579,0.04826181,137.1,137.08,0.04996813]
[1740749366781,1.31296855,137.19,137.08,0.05230834]
[1740749366979,0.04758391,137.1,137.08,0.05230834]
[1740749367183,1.31296855,137.19,136.94,16.07439364]
[1740749367378,23.19296855,137.19,137.05,7.3015]
[1740749367580,21.88,137.17,136.94,16.07439364]
[1740749367775,21.88,137.17,136.94,1.46049364]
[1740749368083,7.2982,137.12,136.94,1.46049364]
[1740749368273,7.2982,137.12,136.96,14.6123]
[1740749368474,7.2982,137.12,137.05,7.3012]
[1740749368674,7.2987,137.11,137.05,195.0]
[1740749368881,40.15414572,137.18,137.07,0.0489721]
[1740749369180,40.15414572,137.18,137.07,195.0]
[1740749369484,40.15414572,137.18,137.08,7.2994]
[1740749369679,7.2971,137.14,137.07,195.0]
[1740749369876,40.15414572,137.18,137.07,195.0]
[1740749370075,0.04594762,137.12,137.09,0.05005038]
[1740749370275,0.04594762,137.12,136.96,433.0]
[1740749370475,40.15414572,137.18,136.96,433.0]
[1740749370681,7.3021,137.04,136.96,433.0]
[1740749370880,62.03414572,137.18,136.96,195.0]
[1740749371086,43.76,137.16,136.94,1.46049364]
[1740749371280,1.31360889,137.15,136.96,40.23529446]
[1740749371584,0.05280953,137.08,137.06,0.05155496]
[1740749371783,7.3005,137.07,137.06,5.496e-05]
[1740749371984,1.45793847,137.18,136.96,40.23529446]
[1740749372179,45.07342201,137.17,136.96,40.23529446]
[1740749372378,1.31342201,137.16,136.98,7.3047]
[1740749372684,1.31342201,137.16,136.96,40.23529446]
[1740749373184,0.04640195,137.07,137.05,0.04962881]
[1740749373380,7.3015,137.06,136.96,40.23529446]
[1740749373580,233.76,137.17,136.96,40.23529446]
[1740749373880,0.04968154,137.07,137.05,0.04962917]
[1740749374387,0.04673722,137.07,137.05,0.04950345]
[1740749374981,10.07990395,137.17,137.05,3.68950345]
[1740749375286,10.07990395,137.17,136.91,40.23529446]
[1740749375486,7.2964,137.15,137.04,7.302]
[1740749375785,10.07990395,137.17,136.91,40.23529446]
[1740749375986,0.05356213,137.05,137.03,0.05543605]
[1740749376185,7.2992,137.1,136.99,7.3046]
[1740749376382,0.05544167,137.05,137.03,0.05073148]
[1740749376586,1.31327777,137.16,136.91,40.23529446]
[1740749376786,0.04598294,137.05,137.03,0.04925477]
[1740749376985,0.04598294,137.05,136.95,7.3067]
[1740749377287,0.05544742,137.01,136.99,0.04866071]
[1740749377486,1.31357564,137.16,136.99,3.64]
[1740749377687,0.05030252,137.01,136.99,0.05214932]
[1740749377890,1.31357564,137.16,136.91,40.23529446]
[1740749378189,1.31357564,137.16,136.94,10.06490746]
[1740749378780,7.299,137.1,136.94,10.06490746]
[1740749378985,43.76,137.17,136.94,10.06490746]
[1740749379187,1.31348462,137.16,136.94,10.06490746]
[1740749379388,0.04715183,137.07,137.04,0.04992153]
[1740749379582,0.04715183,137.07,136.94,10.06490746]
[1740749379883,0.05494955,137.02,136.99,0.05204085]
[1740749380089,43.76,137.17,136.94,10.06490746]
[1740749380290,7.2978,137.13,137.04,7.3017]
[1740749380489,62.03414572,137.17,137.04,7.3017]
[1740749380691,0.049539,137.06,137.04,7.3017]
[1740749380891,1.31316324,137.16,137.09,0.04976193]
[1740749381092,1.31316324,137.16,136.93,1.4606003]
[1740749381481,0.04986645,137.06,136.93,1.4606003]
[1740749381680,7.2976,137.13,137.05,7.3014]
[1740749382492,7.2963,137.15,137.07,7.3]
[1740749382693,7.2963,137.15,136.93,1.4606003]
[1740749382890,0.04969342,137.12,137.1,0.051173]
[1740749383088,21.88,137.19,136.95,1.2959044]
[1740749383284,0.04821075,137.12,137.1,0.05454959]
[1740749383589,0.04822509,137.09,136.97,1.2959044]
[1740749383789,7.2949,137.18,137.1,0.04688296]
[1740749383990,7.2949,137.18,136.98,1.46006716]
[1740749384189,0.05372319,137.15,137.13,0.04589035]
[1740749384385,40.15414572,137.2,136.99,1.29455721]
[1740749384588,0.15414572,137.2,137.19,7.2941]
[1740749384894,41.6250912,137.21,137.07,255.46]
[1740749385094,25.8880912,137.21,137.08,2.7505938]
[1740749385289,25.8624912,137.21,137.09,2.75048737]
[1740749385588,25.8624912,137.21,137.13,0.05442844]
[1740749385789,0.0451525,137.16,137.13,0.05442844]
[1740749386392,0.0451525,137.16,137.15,7.2961]
[1740749386690,5.25e-05,137.16,137.15,10.9361]
[1740749388287,56.1110267,137.25,137.15,3.64]
[1740749388493,56.1110267,137.25,137.16,1.45815106]
[1740749388893,56.1110267,137.25,137.18,7.2942]
[1740749389301,56.1110267,137.25,137.17,7.2951]
[1740749389496,43.76,137.38,137.2,0.053595]
[1740749389703,21.88,137.34,137.2,0.053595]
[1740749389891,1.31183258,137.33,137.13,7.2969]
[1740749390095,1.31183258,137.33,137.26,4.88e-06]
[1740749390400,1.31183258,137.33,137.09,40.23529446]
[1740749390796,1.31183258,137.32,137.12,36.4751]
[1740749390991,233.42,137.53,137.13,2.74956878]
[1740749391195,0.05062884,137.23,137.21,0.0480656]
[1740749391395,1.31081648,137.43,137.21,0.0480656]
[1740749391591,7.2893,137.28,137.21,0.0480656]
[1740749391797,21.88,137.4,137.14,1.45836371]
[1740749391999,1.31123768,137.39,137.14,1.45836371]
[1740749392199,1.31123768,137.39,137.2,7.2931]
[1740749392607,1.31123768,137.39,137.28,0.05215544]
[1740749392904,1.31123768,137.39,137.2,7.2931]
[1740749393100,1.31123768,137.39,137.19,7.2936]
[1740749393401,0.05192249,137.3,137.14,1.45836371]
[1740749393801,1.31123768,137.39,137.14,1.45836371]
[1740749394305,43.76,137.37,137.17,7.295]
[1740749394505,0.05223615,137.28,137.25,0.05188472]
[1740749394705,0.05223615,137.28,137.18,7.2944]
[1740749394904,1.31123768,137.34,137.18,7.2944]
[1740749395301,1.31123768,137.34,137.14,1.45836371]
[1740749395497,21.88,137.32,137.14,1.45836371]
[1740749395698,7.2915,137.24,137.14,1.45836371]
[1740749396005,0.04724048,137.24,137.22,0.0533663]
[1740749396199,1.31148799,137.37,137.14,1.45836371]
[1740749396398,1.31148799,137.37,137.22,0.05300663]
[1740749396602,0.0492107,137.24,137.22,0.05300663]
[1740749396796,21.88,137.34,137.18,7.2942]
[1740749396999,0.05079445,137.24,137.22,0.05356499]
[1740749397399,1.31172602,137.33,137.1,40.23529446]
[1740749397604,0.05369701,137.24,137.22,0.04692341]
[1740749397902,7.2914,137.24,137.18,7.2942]
[1740749398104,0.04927423,137.24,137.22,0.05444777]
[1740749398304,7.34107423,137.24,137.22,0.05444777]
[1740749398607,0.05535167,137.24,137.22,0.05181919]
[1740749398810,0.05535167,137.24,137.11,10.06490746]
[1740749399005,7.34685167,137.24,137.11,10.06490746]
[1740749399206,7.2915,137.24,137.11,10.06490746]
[1740749399406,249.40381598,137.38,137.11,31.94490746]
[1740749399607,249.40381598,137.38,137.12,1.45857642]
[1740749400112,7.2914,137.24,137.23,0.04722793]
[1740749400302,0.05323225,137.26,137.16,7.2956]
[1740749400502,23.1917178,137.35,137.12,1.45857642]
[1740749400707,43.76,137.35,137.12,1.45857642]
[1740749401008,1.31177302,137.34,137.12,1.45857642]
[1740749401205,21.88,137.32,137.09,40.23529446]
[1740749401407,1.31177302,137.31,137.13,7.2972]
[1740749401700,7.293,137.21,137.19,0.05541771]
[1740749401900,0.05522577,137.22,137.19,0.05541771]
[1740749402210,0.04589182,137.22,137.19,0.04854767]
[1740749403821,3.68589182,137.22,137.08,44.48967765]
[1740749404004,1.31209726,137.21,137.04,117.71266559]
[1740749404205,1.31209726,137.23,137.04,117.71266559]
[1740749404507,247.9489,137.38,137.05,1.45932141]
[1740749404706,1.31209935,137.36,137.06,255.22]
[1740749405010,0.04854256,137.22,137.2,3.033e-05]
[1740749405412,21.88,137.27,137.05,1.45932141]
[1740749405616,1.31240023,137.26,137.05,1.45932141]
[1740749405905,1.31240023,137.31,137.05,1.45932141]
[1740749406206,21.88,137.29,137.02,117.71266559]
[1740749406508,0.05135461,137.19,137.02,117.71266559]
[1740749406808,21.88,137.24,137.02,117.71266559]
[1740749407011,1.31256426,137.23,137.02,117.71266559]
[1740749407408,45.07256426,137.27,137.02,117.71266559]
[1740749407709,0.05290183,137.14,137.11,0.05410638]
[1740749408101,1.31256426,137.26,137.02,117.71266559]
[1740749408305,43.76,137.24,136.96,123.19370518]
[1740749408511,1.31256426,137.23,136.96,123.19370518]
[1740749408712,1.31256426,137.23,136.97,1.29496455]
[1740749408913,7.295,137.18,136.98,14.6105]
[1740749409108,1.31256426,137.24,136.98,14.6105]
[1740749409109,1.45719489,137.25,136.99,2.75492513]
[1740749409306,1.31257122,137.24,137.1,0.04647039]
[1740749409501,124.96078559,137.37,137.1,0.04647039]
[1740749409711,1.31157027,137.36,137.08,1.29496455]
[1740749409912,1.31157027,137.36,137.09,1.29496455]
[1740749410114,1.31157027,137.36,137.11,21.88]
[1740749410310,124.96078559,137.37,137.12,1.29496455]
[1740749410512,124.96078559,137.37,137.13,1.45847006]
[1740749410814,124.96078559,137.37,137.22,0.04850385]
[1740749411013,79.85436791,137.46,137.22,0.04850385]
[1740749411313,79.85436791,137.46,137.22,21.88]
[1740749411516,79.85436791,137.46,137.3,21.88]
[1740749411910,79.85436791,137.46,137.13,1.45847006]
[1740749412112,0.05111029,137.39,137.37,0.04706757]
[1740749412315,79.85436791,137.46,137.37,0.04706757]
[1740749412610,79.75056791,137.46,137.37,3.64]
[1740749412807,79.63866791,137.46,137.27,233.24]
[1740749413005,58.71586791,137.46,137.45,7.2803]
[1740749413217,32.94576791,137.46,137.45,7.2803]
[1740749413412,189.13112167,137.48,137.45,3.64]
[1740749413605,1807.74,137.95,137.45,3.64]
[1740749413606,233.24,137.84,137.45,3.64]
[1740749413811,0.05340966,137.47,137.44,0.0518943]
[1740749414110,7.28,137.65,137.44,3.64]
[1740749414310,7.28,137.65,137.42,233.24]
[1740749414518,79.65067321,137.73,137.42,233.24]
[1740749414712,7.28,137.7,137.42,233.24]
[1740749414907,7.28,137.7,137.43,1.277973]
[1740749415112,119.47600981,137.75,137.42,233.24]
[1740749415312,396.60173247,137.89,137.55,0.05012307]
[1740749415834,396.60173247,137.89,137.43,1.27698451]
[1740749416012,268.66993418,137.89,137.44,29.1233]
[1740749416226,14.494,138.09,137.81,7.2607]
[1740749416409,36.40021996,138.09,137.79,233.02]
[1740749416913,0.04835955,137.96,137.94,0.05361124]
[1740749417417,14.4727,138.29,137.79,233.02]
[1740749417613,7.2407,138.21,138.02,551.43350748]
[1740749417921,84.89824397,138.09,138.02,551.43350748]
[1740749418219,84.89824397,138.1,138.02,551.43350748]
[1740749418613,1.447178,138.2,138.03,98.91067184]
[1740749418818,0.0476877,138.07,138.05,0.05294388]
[1740749419309,1.447178,138.2,138.03,98.91067184]
[1740749419519,84.89824397,138.19,138.04,7.2491]
[1740749419820,232.64,138.55,138.05,0.05302157]
[1740749420014,84.89824397,138.27,138.03,98.91067184]
[1740749420208,84.89824397,138.3,138.03,98.91067184]
[1740749420413,36.40030955,138.55,138.03,98.91067184]
[1740749420414,84.89824397,138.36,138.05,57.77701128]
[1740749420615,84.89824397,138.41,138.05,31.33287007]
[1740749420811,84.89824397,138.44,138.05,31.33287007]
[1740749421010,84.89824397,138.37,138.24,7.2386]
[1740749421215,36.40030955,138.55,138.22,0.04841769]
[1740749421216,3.457e-05,138.24,138.22,0.04841769]
[1740749421417,84.89824397,138.47,138.23,232.28]
[1740749421718,7.2259,138.49,138.23,232.28]
[1740749421719,14.418,138.81,138.23,232.28]
[1740749421910,37.87819539,138.79,138.24,1.25583925]
[1740749422316,37.87819539,138.79,138.39,14.4614]
[1740749422619,37.87819539,138.79,138.4,232.28]
[1740749422917,37.87819539,138.79,138.5,0.04966028]
[1740749423114,37.87819539,138.79,138.67,7.2162]
[1740749423314,37.87819539,138.79,138.6,232.28]
[1740749423512,1.47788584,138.79,138.6,232.28]
[1740749423719,37.87819539,138.79,138.72,0.05108641]
[1740749424114,1.47788584,138.79,138.6,73.20542584]